Workbook

Sheet Trailing 12
A1: Rolling 12-Kalispell Lofts
B2: 2025-05-01 | C2: 2025-06-01 | D2: 2025-07-01 | E2: 2025-08-25 | F2: 2025-09-25 | G2: 2025-10-25 | H2: 2025-11-25 | I2: 2025-12-25 | J2: 2026-01-25 | K2: 2026-02-25 | L2: 2026-03-25 | M2: 2026-04-25 | N2: Average/month
A3: Total Rental Income | B3: =[1]May!E3 -> 72102.84 | C3: =[1]June!E3 -> 69292.27 | D3: =[1]July!E3 -> 79980.36 | E3: =[1]August!E3 -> 77286.17 | F3: =[1]September!E3 -> 82034.37 | G3: =[1]October!E3 -> 74667.46 | H3: =[1]November!E3 -> 68710.77 | I3: ='[1]December 25'!W5 -> 75790.61 | J3: ='[1]January 26'!E3 -> 69972.95 | K3: ='[1]Feb 26'!E3 -> 79912.14 | L3: ='[1]Mar 26'!E3 -> 82483 | M3: ='[1]Apr 26'!E3 -> 79237.56 | N3: =AVERAGE(B3:M3) -> 75955.875
A5: Expenses
A6: Debt Service | B6: 35301.79 | C6: 35301.79 | D6: 35301.79 | E6: 35301.79 | F6: 35301.79 | G6: 35301.79 | H6: 35301.79 | I6: 35301.79 | J6: 35301.79 | K6: 35301.79 | L6: 35301.79 | M6: 35301.79 | N6: =AVERAGE(B6:M6) -> 35301.79
A7: Internet | B7: 950 | C7: 980 | D7: 950 | E7: 920 | F7: 1324 | G7: 980 | H7: 1010 | I7: 1010 | J7: 1010 | K7: 1040 | L7: 1010 | M7: 1050 | N7: 1019.5
A8: Electricity | B8: 2727 | C8: 1869 | D8: 1991 | E8: 2105 | F8: 2227 | G8: 2085 | H8: 2495 | I8: 3653 | J8: 4486 | K8: 5095 | L8: 4630 | M8: 3421 | N8: 3065.333333
A9: Garbage | B9: 628.85 | C9: 628.85 | D9: 628.85 | E9: 628.85 | F9: 628.85 | G9: 628.85 | H9: 790.88 | I9: 599.45 | J9: 628.85 | K9: 681 | L9: 681 | M9: 681 | N9: 652.94
A10: Water | B10: 972.1 | C10: 1130.34 | D10: 1400.53 | E10: 1393.2 | F10: 1346.15 | G10: 1409.48 | H10: 1723.8 | I10: 1502.34 | J10: 1710.11 | K10: 1667.93 | L10: 1456.5 | M10: 1511.24 | N10: 1435.31
A11: Prop Management | B11: 6250 | C11: 5600 | D11: 6250 | E11: 6250 | F11: 6250 | G11: 4727.27 | H11: 4076.09 | I11: 5833.33 | J11: 6741.94 | K11: 6250 | L11: 6250 | M11: 6250 | N11: 5894.0525
A12: Insurance | B12: 1151.911667 | C12: 1151.911667 | D12: 1151.911667 | E12: 1151.911667 | F12: 1151.911667 | G12: 1151.911667 | H12: 1151.911667 | I12: 1151.91 | J12: 1271.83 | K12: 1271.83 | L12: 1271.83 | M12: 1271.83 | N12: 1191.884306
A13: Marketing (normalized) | B13: =[1]worksheet!$C$45 -> 94.74666667 | C13: =[1]worksheet!$C$45 -> 94.74666667 | D13: =[1]worksheet!$C$45 -> 94.74666667 | E13: =[1]worksheet!$C$45 -> 94.74666667 | F13: =[1]worksheet!$C$45 -> 94.74666667 | G13: =[1]worksheet!$C$45 -> 94.74666667 | H13: =[1]worksheet!$C$45 -> 94.74666667 | I13: =[1]worksheet!$C$45 -> 94.74666667 | J13: =[1]worksheet!$C$45 -> 94.74666667 | K13: =[1]worksheet!$C$45 -> 94.74666667 | L13: =[1]worksheet!$C$45 -> 94.74666667 | M13: =[1]worksheet!$C$45 -> 94.74666667 | N13: 94.74666667
A14: Property Tax (normalized) | B14: 234.6683333 | C14: 234.6683333 | D14: 234.6683333 | E14: 234.6683333 | F14: 234.6683333 | G14: 234.6683333 | H14: 234.6683333 | I14: 4526.14 | J14: 4526.14 | K14: 4526.14 | L14: 4526.14 | M14: 4526.14 | N14: 2022.781528
A15: Snow Plow | B15: 0 | C15: 0 | D15: 0 | E15: 0 | F15: 0 | G15: 0 | H15: 0 | I15: 0 | J15: 230 | K15: 0 | L15: 0 | M15: 0 | N15: 19.16666667
A16: Annual Fire Inspections (normalized) | B16: =[1]worksheet!$D$45 -> 315 | C16: =[1]worksheet!$D$45 -> 315 | D16: =[1]worksheet!$D$45 -> 315 | E16: =[1]worksheet!$D$45 -> 315 | F16: =[1]worksheet!$D$45 -> 315 | G16: =[1]worksheet!$D$45 -> 315 | H16: =[1]worksheet!$D$45 -> 315 | I16: =[1]worksheet!$D$45 -> 315 | J16: =[1]worksheet!$D$45 -> 315 | K16: =[1]worksheet!$D$45 -> 315 | L16: =[1]worksheet!$D$45 -> 315 | M16: =[1]worksheet!$D$45 -> 315 | N16: 315
A17: Misc Expenses/supplies (normalized) | B17: =[1]worksheet!$E$46 -> 404.0516667 | C17: =[1]worksheet!$E$46 -> 404.0516667 | D17: =[1]worksheet!$E$46 -> 404.0516667 | E17: =[1]worksheet!$E$46 -> 404.0516667 | F17: =[1]worksheet!$E$46 -> 404.0516667 | G17: =[1]worksheet!$E$46 -> 404.0516667 | H17: =[1]worksheet!$E$46 -> 404.0516667 | I17: =[1]worksheet!$E$46 -> 404.0516667 | J17: =[1]worksheet!$E$46 -> 404.0516667 | K17: =[1]worksheet!$E$46 -> 404.0516667 | L17: =[1]worksheet!$E$46 -> 404.0516667 | M17: =[1]worksheet!$E$46 -> 404.0516667 | N17: 404.0516667
A18: Total Expenses | B18: =SUM(B6:B17) -> 49030.11833 | C18: 47710.35833 | D18: 48722.54833 | E18: 48799.21833 | F18: 49278.16833 | G18: 47332.76833 | H18: 47597.93833 | I18: 54391.75833 | J18: 56720.45833 | K18: =SUM(K6:K17) -> 56647.48833 | L18: =SUM(L6:L17) -> 55941.05833 | M18: =SUM(M6:M17) -> 54826.79833 | N18: 51416.55667
A20: Expenses Less Debt | B20: =B18-B6 -> 13728.32833 | C20: 12408.56833 | D20: 13420.75833 | E20: =E18-E6 -> 13497.42833 | F20: =F18-F6 -> 13976.37833 | G20: 12030.97833 | H20: 12296.14833 | I20: 19089.96833 | J20: 21418.66833 | K20: 21345.69833 | L20: 20639.26833 | M20: 19525.00833 | N20: =AVERAGE(B20:M20) -> 16114.76667
A22: Expense Ratio | B22: =B20/B3 -> 0.1903992732 | C22: 0.1790757949 | D22: 0.1678006742 | E22: 0.1746422204 | F22: 0.1703722273 | G22: 0.1611274621 | H22: 0.1789551817 | I22: 0.2518777502 | J22: 0.3060992617 | K22: 0.2671145878 | L22: 0.2502245109 | M22: 0.2464110244 | N22: =AVERAGE(B22:M22) -> 0.2120083307
A24: Monthly Profit | B24: =B3-B18 -> 23072.72167 | C24: 21581.91167 | D24: 31257.81167 | E24: =E3-E18 -> 28486.95167 | F24: =F3-F18 -> 32756.20167 | G24: 27334.69167 | H24: 21112.83167 | I24: 21398.85167 | J24: 13252.49167 | K24: 23264.65167 | L24: 26541.94167 | M24: 24410.76167 | N24: =AVERAGE(B24:M24) -> 24539.31833
A28: Rolling 12 | B28: Totals | C28: Monthly Ave
A29: Total Income (May '25 - Apr'26) | B29: =SUM(B3:M3) -> 911470.5 | C29: =B29/12 -> 75955.875
A30: Total Exp | B30: =SUM(B18:M18) -> 616998.68 | C30: =B30/12 -> 51416.55667
A31: Total Exp-Debt | B31: =SUM(B20:M20) -> 193377.2 | C31: =B31/12 -> 16114.76667
A32: Average Exp Ratio | B32: =AVERAGE(B22:M22) -> 0.2120083307 | C32: =B32 -> 0.2120083307
A33: Total Profit | B33: =SUM(B24:M24) -> 294471.82 | C33: =B33/12 -> 24539.31833
A36: Rolling 6 | B36: Totals | C36: Monthly Ave | D36: Annualized
A37: Total Income (Nov '25 - Apr '26) | B37: =SUM(H3:M3) -> 456107.03 | C37: =B37/6 -> 76017.83833 | D37: =C37*12 -> 912214.06
A38: Total Exp | B38: =SUM(H18:M18) -> 326125.5 | C38: =B38/6 -> 54354.25 | D38: =C38*12 -> 652251
A39: Total Exp-Debt | B39: =SUM(H20:M20) -> 114314.76 | C39: =B39/6 -> 19052.46 | D39: =C39*12 -> 228629.52
A40: Average Exp Ratio | B40: =AVERAGE(H22:M22) -> 0.2501137195 | C40: =B40 -> 0.2501137195 | D40: =C40 -> 0.2501137195
A41: Total Profit | B41: =SUM(H24:M24) -> 129981.53 | C41: =B41/6 -> 21663.58833 | D41: =C41*12 -> 259963.06
A44: Rolling 3 | B44: Totals | C44: Monthly Ave
A45: Total Income (Feb '26 - Apr '26) | B45: =SUM(K3:M3) -> 241632.7 | C45: =B45/3 -> 80544.23333
A46: Total Exp | B46: =SUM(K18:M18) -> 167415.345 | C46: =B46/3 -> 55805.115
A47: Total Exp-Debt | B47: =SUM(K20:M20) -> 61509.975 | C47: =B47/3 -> 20503.325
A48: Average Exp Ratio | B48: =AVERAGE(K22:M22) -> 0.2545833744 | C48: =B48 -> 0.2545833744
A49: Total Profit | B49: =SUM(K24:M24) -> 74217.355 | C49: =B49/3 -> 24739.11833

Sheet Rental Income Breakdown
C2: 2025-05-01 | D2: 2025-06-01 | E2: 2025-07-01 | F2: 2025-08-25 | G2: 2025-09-25 | H2: 2025-10-25 | I2: 2025-11-25 | J2: 2025-12-25 | K2: 2026-01-25 | L2: 2026-02-25 | M2: 2026-03-25 | N2: 2026-04-25 | O2: Average | P2: =N4/45 -> 0.9777777778
B3: Total Rental Income | C3: =[1]Summary!B3 -> 72102.84 | D3: =[1]Summary!C3 -> 69292.27 | E3: =[1]Summary!D3 -> 79980.36 | F3: =[1]Summary!E3 -> 77286.17 | G3: =[1]Summary!F3 -> 82034.37 | H3: =[1]Summary!G3 -> 74667.46 | I3: =[1]Summary!H3 -> 68710.77 | J3: =[1]Summary!I3 -> 75790.61 | K3: =[1]Summary!J3 -> 69972.95 | L3: =[1]Summary!K3 -> 79912.14 | M3: =[1]Summary!L3 -> 82483 | N3: =[1]Summary!M3 -> 79237.56 | O3: =AVERAGE(C3:N3) -> 75955.875
B4: Occupied Units | C4: 42 | D4: 43 | E4: 44 | F4: 45 | G4: 45 | H4: 43 | I4: 43 | J4: 43 | K4: 42 | L4: 45 | M4: 45 | N4: 44 | O4: =AVERAGE(C4:N4) -> 43.66666667
A6: rs | B6: Rental Income (simple) | C6: =C3-(SUM(C7:C11)) -> 64485.34 | D6: 61961.27 | E6: 72173.36 | F6: 69723.67 | G6: 74274.46 | H6: 66895.08 | I6: 61135.64 | J6: 66971.24 | K6: =K3-(SUM(K7:K11)) -> 60196.95 | L6: =L3-(SUM(L7:L11)) -> 68358.08 | M6: =M3-(SUM(M7:M11)) -> 71946.06 | N6: =N3-(SUM(N7:N11)) -> 70865.57 | O6: =AVERAGE(C6:N6) -> 67415.56
B7: Electricity (cost reclaimation) | C7: =[1]Summary!B8 -> 2727 | D7: =[1]Summary!C8 -> 1869 | E7: =[1]Summary!D8 -> 1991 | F7: =[1]Summary!E8 -> 2105 | G7: =[1]Summary!F8 -> 2227 | H7: =[1]Summary!G8 -> 2085 | I7: =[1]Summary!H8 -> 2495 | J7: =[1]Summary!I8 -> 3653 | K7: =[1]Summary!J8 -> 4486 | L7: =[1]Summary!K8 -> 5095 | M7: =[1]Summary!L8 -> 4630 | N7: =[1]Summary!M8 -> 3421 | O7: 3065.333333
B8: Water | C8: =C4*25 -> 1050 | D8: 1075 | E8: 1100 | F8: 1125 | G8: 1125 | H8: 1075 | I8: 1075 | J8: 1075 | K8: =K4*25 -> 1050 | L8: 1160 | M8: 1160 | N8: 1177 | O8: 1103.916667
B9: Internet | C9: =[1]worksheet!D16 -> 1849 | D9: =[1]worksheet!E16 -> 1908 | E9: =[1]worksheet!F16 -> 1849 | F9: =[1]worksheet!G16 -> 1790 | G9: =[1]worksheet!H16 -> 1849 | H9: =[1]worksheet!I16 -> 1908 | I9: =[1]worksheet!J16 -> 1967 | J9: 1849 | K9: 1790 | L9: 1790 | M9: 1908 | N9: 1849 | O9: 1858.833333
B10: Monthly Pet Fee | C10: 1370 | D10: 1300 | E10: 1250 | F10: 1250 | G10: 1300 | H10: 1300 | I10: 1300 | J10: 1300 | K10: 1250 | L10: 1200 | M10: 1555 | N10: 965 | O10: 1278.333333
B11: Misc (App/Late /Cleaning Fees) | C11: =[1]worksheet!H24 -> 621.5 | D11: =[1]worksheet!I24 -> 1179 | E11: =[1]worksheet!J24 -> 1617 | F11: =[1]worksheet!K24 -> 1292.5 | G11: =[1]worksheet!L24 -> 1258.91 | H11: =[1]worksheet!M24 -> 1404.38 | I11: =[1]worksheet!N24 -> 738.13 | J11: =[1]worksheet!O24 -> 942.37 | K11: =[1]worksheet!P24 -> 1200 | L11: =[1]worksheet!Q24 -> 2309.06 | M11: =[1]worksheet!R24 -> 1283.94 | N11: =[1]worksheet!S24 -> 959.99 | O11: 1233.898333
B17: *Electricity is a pass through
B18: *Water Billed at $25/Unit (updating to $32 with new leases)
B19: *Internet cost is $30 for 100 mbps and $50 for 500mbps - billed at $59 for 100 mbps and $79 for 500 mbps (revenue generator)

Sheet Pro-Forma
B2: Income & Expense Summary
B3: Operating Income | C3: Current T-12 | D3: Proforma | E3: Notes
B4: Market Rent | C4: ='Rental Income Breakdown'!O6*12 -> 808986.72 | D4: ='Rent Roll - May 2026'!F49 -> 833400
B5: Vacancy Loss | C5: 0 | D5: =D4*0.04 -> 33336 | E5: Proforma Set to 4% | G5: =43/45 -> 0.9555555556
B6: Rent Concessions | C6: 0 | D6: 0 | E6: Currently no rent concessions
B7: Bad Debt | C7: 0 | D7: =D4*0.005 -> 4167 | E7: Proforma set to .5%
B8: Total Rental Income | C8: =C4-C5-C7 -> 808986.72 | D8: =D4-D5-D7 -> 795897
B9: Admin Fee Income | C9: ='Rental Income Breakdown'!O11*12 -> 14806.78 | D9: =45*360 -> 16200 | E9: Average $360/annually per unit
B10: Pet Rent Income | C10: ='Rental Income Breakdown'!O10*12 -> 15340 | D10: =((95*45)*0.3)*12 -> 15390 | E10: Average $95/unit 30% usage
B11: Internet Income | C11: ='Rental Income Breakdown'!O9*12 -> 22306 | D11: =((59*45)*0.75)*12 -> 23895 | E11: Average $59/unit 75% usage
B12: Utility Reimbursement | C12: =('Rental Income Breakdown'!O7+'Rental Income Breakdown'!O8)*12 -> 50031 | D12: =C12 -> 50031 | E12: Pass through, similar usage
B13: Effective Gross Income | C13: =C8+C9+C10+C12+C11 -> 911470.5 | D13: =D8+D9+D10+D12+D11 -> 901413
B14: Operating Expenses | C14: T6 Financials | D14: Proforma
B15: Prop Management | C15: ='Trailing 12'!N11*12 -> 70728.63 | D15: =D13*0.08 -> 72113.04 | E15: 8% Mangement Fee
B16: Marketing | C16: ='Trailing 12'!N13*12 -> 1136.96 | D16: 2500
B17: Snow Plow | C17: 3885 | D17: 4000
B18: Annual Fire Inspections | C18: ='Trailing 12'!N16*12 -> 3780 | D18: 3800
B19: Misc Expenses/Supplies | C19: ='Trailing 12'!N17*12 -> 4848.62 | D19: 4900
B20: Turnover/Maintenance | C20: 0 | D20: =275*45 -> 12375 | E20: Increased to $275/unit annually
B21: Total Controllables | C21: =SUM(C15:C20) -> 84379.21 | D21: =SUM(D15:D20) -> 99688.04
B22: Internet | C22: ='Trailing 12'!N7*12 -> 12234 | D22: =C22 -> 12234 | E22: Similar Utility Expenses Expected
B23: Electricity | C23: ='Trailing 12'!N8*12 -> 36784 | D23: =C23 -> 36784 | E23: "
B24: Garbage | C24: ='Trailing 12'!N9*12 -> 7835.28 | D24: 7835.28 | E24: "
B25: Water | C25: ='Trailing 12'!N10*12 -> 17223.72 | D25: 17223.72 | E25: "
B26: Insurance | C26: ='Trailing 12'!N12*12 -> 14302.61167 | D26: =360*45 -> 16200 | E26: $360/unit annually
B27: Property Tax | C27: ='Trailing 12'!N14*12 -> 24273.37833 | D27: 54313.66 | E27: Proforma shows updated taxes for 2026
B28: Capital Reserves | D28: =D13*0.02 -> 18028.26 | E28: 2% Capital Reserve - Lender Required
B29: Total Fixed | C29: =SUM(C22:C28) -> 112652.99 | D29: =SUM(D22:D28) -> 162618.92
B30: Total Operating Expenses | C30: =C21+C29 -> 197032.2 | D30: =D21+D29 -> 262306.96
B31: Expenses % of Gross | C31: =C30/C13 -> 0.2161695853 | D31: =D30/D13 -> 0.2909953151 | E31: Proforma trends with similar properties
B32: Net Operting Income | C32: =C13-C30 -> 714438.3 | D32: =D13-D30 -> 639106.04
B33: Asking Price - Cap Rate Summary
B34: 10450000 | C34: =C32/B34 -> 0.06836730144 | D34: =D32/B34 -> 0.06115847273
B37: Debt Quotes - Income Breakdown Proforma
B38: Feature | C38: Option 1 | D38: Option 2 | E38: Option 3
B39: Purchase Price | C39: 10450000 | D39: =C39 -> 10450000 | E39: =D39 -> 10450000
B40: Down Payment | C40: =C39-C41 -> 3658000 | D40: =D39-D41 -> 3725000 | E40: 3912000
B41: Loan Amount | C41: 6792000 | D41: 6725000 | E41: 6538000
B42: Loan Term | C42: 5 | D42: 7 | E42: 10
B43: Interest Only Debt Service | C43: =27423*12 -> 329076 | D43: =28497*12 -> 341964 | E43: =29067*12 -> 348804
B44: Prepayment | C44: 4.5yr | D44: 6.5yr | E44: 9.5yr
B45: Interest Only Years | C45: 2 | D45: 3 | E45: 5
B46: Interest Rate | C46: 0.0485 | D46: 0.0509 | E46: 0.0534
B47: Recourse | C47: Non-Recourse | D47: Non-Recourse | E47: Non-Recourse
B48: Rate Buydown Cost | C48: 135840 | D48: 134500 | E48: 130760
B49: FNMA Fee | C49: 6792 | D49: 6725 | E49: 6538
B50: Third Party Report | C50: 6500 | D50: 6500 | E50: 6500
B51: Origination Fees | C51: 67920 | D51: 67250 | E51: 65380
B52: Closing/Legal Cost | C52: 8500 | D52: 8500 | E52: 8500
B53: Total Buyers Equity | C53: =C40+C48+C49+C50+C51+C52 -> 3883552 | D53: =D40+D48+D49+D50+D51+D52 -> 3948475 | E53: 4129678
B55: Total Income | C55: =D13 -> 901413 | D55: =C55 -> 901413 | E55: =D55 -> 901413
B56: Operating Expenses | C56: =D30 -> 262306.96 | D56: =C56 -> 262306.96 | E56: =D56 -> 262306.96
B57: Debt Service | C57: =C43 -> 329076 | D57: =D43 -> 341964 | E57: =E43 -> 348804
B58: Net Owner Income | C58: =C55-C56-C57 -> 310030.04 | D58: =D55-D56-D57 -> 297142.04 | E58: =E55-E56-E57 -> 290302.04
B59: ROE | C59: =C58/C53 -> 0.07983156657 | D59: =D58/D53 -> 0.07525488701 | E59: 0.07029653159

Sheet Rent Roll - May 2026
A1: Kalispell Lofts — Rent Roll | May 2026
A2: Unit | B2: Tenant(s) | C2: Lease Start | D2: Lease End | E2: Beds/Baths | F2: Market Rent | G2: Base Rent | H2: Internet | I2: Water | J2: Pet Fee | K2: Total Rent | L2: Deposit
A3: 126-101 | B3: Lavetta & Robert Collier | C3: 2023-11-11 | D3: 2026-11-30 | E3: 1/1 | F3: 1480 | G3: 1480 | H3: 59 | I3: 25 | K3: =G3+H3+I3+J3 -> 1564 | L3: 1630
A4: 126-102 | B4: Ryan Sandberg | C4: 2025-07-01 | D4: 2026-06-30 | E4: 1/1 | F4: 1545 | G4: 1545 | H4: 59 | I4: 25 | J4: 50 | K4: =G4+H4+I4+J4 -> 1679 | L4: 2045
A5: 126-103 | B5: Glenda Slaughter | C5: 2024-11-01 | D5: 2026-11-30 | E5: 1/1 | F5: 1480 | G5: 1480 | H5: 59 | I5: 25 | J5: 50 | K5: =G5+H5+I5+J5 -> 1614 | L5: 2230
A6: 126-104 | B6: Aleesha Bradeen | C6: 2025-05-01 | D6: 2026-04-30 | E6: S/1 | F6: 1250 | G6: 1250 | H6: 59 | I6: 32 | J6: 50 | K6: 1391 | L6: 1580
A7: 126-105 | B7: Joseph & Sheila Elsass | C7: 2024-10-25 | D7: 2026-12-31 | E7: 2/2 | F7: 1875 | G7: 1875 | I7: 25 | K7: 1900 | L7: 1780
A8: 126-201 | B8: Travis Heitmann | C8: 2026-03-01 | D8: 2027-02-28 | E8: 1/1 | F8: 1545 | G8: 1545 | H8: 59 | I8: 32 | J8: 50 | K8: 1686 | L8: 2045
A9: 126-202 | B9: Benjamin Cox | C9: 2025-07-01 | D9: 2026-06-30 | E9: 1/1 | F9: 1545 | G9: 1545 | H9: 59 | I9: 25 | K9: 1629 | L9: 1545
A10: 126-203 | B10: Kevin Barrow | C10: 2025-06-01 | D10: 2026-05-31 | E10: 1/1 | F10: 1480 | G10: 1480 | I10: 25 | K10: 1505 | L10: 1480
A11: 126-204 | B11: Jim Goudy | C11: 2024-03-28 | D11: 2026-03-31 | E11: -/1 | F11: 1250 | G11: 1250 | H11: 59 | I11: 25 | K11: 1334 | L11: 1250
A12: 126-205 | B12: Camille Finely & Cody Johnston | C12: 2024-05-01 | D12: 2026-04-30 | E12: 2/2 | F12: 1780 | G12: 1780 | H12: 59 | I12: 32 | K12: 1871 | L12: 1880
A13: 126-301 | B13: Elizabeth Petz, Ethan & Gannon Welder | C13: 2024-08-10 | D13: 2026-08-31 | E13: 1/1 | F13: 1580 | G13: 1580 | H13: 59 | I13: 25 | K13: 1664 | L13: 1580
A14: 126-302 | B14: Mitchell Sigman | C14: 2025-04-03 | D14: 2027-03-31 | E14: 1/1 | F14: 1545 | G14: 1545 | I14: 32 | K14: 1577 | L14: 1545
A15: 126-303 | B15: Cassandra Grimm, Kristina Grimm & Wyatt Eckhart | C15: 2025-04-01 | D15: 2026-03-31 | E15: 1/1 | F15: 1480 | G15: 1480 | H15: 59 | I15: 25 | J15: 50 | K15: 1614 | L15: 1480
A16: 126-304 | B16: Kristian Castillo | C16: 2024-01-01 | D16: 2027-03-31 | E16: -/1 | F16: 1250 | G16: 1250 | H16: 59 | I16: 25 | J16: 50 | K16: 1384 | L16: 1600
A17: 126-305 | B17: Dawson Lemay | C17: 2024-11-01 | D17: 2026-10-31 | E17: 2/2 | F17: 1875 | G17: 1875 | H17: 59 | I17: 25 | J17: 100 | K17: 2059 | L17: 2375
A18: 128-101 | B18: Laurie Buccella | C18: 2024-02-26 | D18: 2027-02-28 | E18: 1/1 | F18: 1580 | G18: 1580 | H18: 59 | I18: 25 | J18: 100 | K18: 1764 | L18: 1580
A19: 128-102 | B19: Rob Bowman | C19: 2025-05-01 | D19: 2026-04-30 | E19: 1/1 | F19: 1545 | G19: 1545 | I19: 32 | J19: 25 | K19: 1602 | L19: 1545
A20: 128-103 | B20: Samantha Varner & Vadim Khmelev | C20: 2025-08-01 | D20: 2026-07-31 | E20: 1/1 | F20: 1480 | G20: 1480 | H20: 59 | I20: 25 | J20: 50 | K20: 1614 | L20: 1980
A21: 128-104 | B21: Amy Prangley | C21: 2023-11-01 | D21: 2026-04-30 | E21: -/1 | F21: 1250 | G21: 1250 | I21: 25 | J21: 100 | K21: 1375 | L21: 1250
A22: 128-105 | B22: Amber & Eric Johnson | C22: 2024-11-08 | D22: 2026-10-31 | E22: 2/2 | F22: 1875 | G22: 1875 | H22: 59 | I22: 25 | K22: 1959 | L22: 1875
A23: 128-201 | B23: Shareka Harris | C23: 2025-09-01 | D23: 2026-08-31 | E23: 1/1 | F23: 1545 | G23: 1545 | H23: 59 | I23: 25 | J23: 50 | K23: 1679 | L23: 1545
A24: 128-202 | B24: Jackman Robohm & Mary Hodges | C24: 2023-10-23 | D24: 2026-04-30 | E24: 1/1 | F24: 1580 | G24: 1580 | H24: 59 | I24: 32 | K24: 1671 | L24: 1580
A25: 128-203 | B25: Amanda Cardin & Thomas Burkhart | C25: 2025-05-17 | D25: 2026-05-31 | E25: 1/1 | F25: 1480 | G25: 1480 | H25: 59 | I25: 25 | K25: 1564 | L25: 1480
A26: 128-204 | B26: Seth Ragan | C26: 2025-10-01 | D26: 2026-09-26 | E26: S/1 | F26: 1250 | G26: 1250 | H26: 59 | I26: 25 | K26: 1334 | L26: 1545
A27: 128-205 | B27: Alexander Piwojarski | C27: 2023-11-11 | D27: 2026-11-30 | E27: 2/2 | F27: 1875 | G27: 1875 | H27: 59 | I27: 25 | K27: 1959 | L27: 1930
A28: 128-301 | B28: Jeffery & Mackenzie Voigt | C28: 2025-05-01 | D28: 2026-04-30 | E28: 1/1 | F28: 1545 | G28: 1545 | I28: 32 | K28: 1577 | L28: 1545
A29: 128-302 | B29: Jonathan Shoemate | C29: 2025-03-15 | D29: 2027-03-31 | E29: 1/1 | F29: 1545 | G29: 1545 | I29: 25 | K29: 1570 | L29: 1545
A30: 128-303 | B30: David Kucharczyk, Macie Holm & Matthew Kucharczyk | C30: 2026-02-27 | D30: 2027-02-28 | E30: 1/1 | F30: 1480 | G30: 1480 | H30: 59 | I30: 32 | K30: 1571 | L30: 1480
A31: 128-304 | B31: Chris Horton | C31: 2024-05-01 | D31: 2026-04-30 | E31: -/1 | F31: 1250 | G31: 1250 | H31: 59 | I31: 25 | K31: 1334 | L31: 1250
A32: 128-305 | B32: Jessalynn Holman & Kenneth Goldsberry | C32: 2023-12-14 | D32: 2026-03-31 | E32: 2/2 | F32: 1875 | G32: 1875 | I32: 25 | J32: 50 | K32: 1950 | L32: 2330
A33: 130-101 | B33: Michael Ince | C33: 2025-09-15 | D33: 2026-04-30 | E33: 1/1 | F33: 1545 | G33: 1545 | H33: 59 | I33: 25 | K33: 1629 | L33: 1545
A34: 130-102 | B34: Nicole Birk & Robert Miller | C34: 2024-05-06 | D34: 2026-08-31 | E34: 1/1 | F34: 1580 | G34: 1580 | H34: 79 | I34: 25 | J34: 50 | K34: 1734 | L34: 2080
A35: 130-103 | B35: Jade Blanchard & Samuel Harris | C35: 2025-04-01 | D35: 2026-03-31 | E35: 1/1 | F35: 1480 | G35: 1480 | H35: 59 | I35: 25 | K35: 1564 | L35: 1250
A36: 130-104 | B36: Joel Arrieta | C36: 2025-10-10 | D36: 2026-10-31 | E36: -/1 | F36: 1300 | G36: 1300 | H36: 59 | I36: 25 | K36: 1384 | L36: 1300
A37: 130-105 | B37: Almaz Yussupov | C37: 2025-05-08 | D37: 2026-04-30 | E37: 2/2 | F37: 1875 | G37: 1875 | I37: 25 | J37: 100 | K37: 2000 | L37: 1875
A38: 130-201 | B38: Alyssa Trevino & Jason Ahumada | C38: 2023-11-04 | D38: 2026-11-30 | E38: 1/1 | F38: 1545 | G38: 1545 | I38: 25 | J38: 100 | K38: 1670 | L38: 2030
A39: 130-202 | B39: — | C39: 2025-08-01 | D39: 2026-07-31 | E39: 1/1 | F39: 1545 | K39: 0
A40: 130-203 | B40: Angela Curtis & Sara Johnston | C40: 2025-04-17 | D40: 2026-04-30 | E40: 1/1 | F40: 1480 | G40: 1480 | I40: 32 | K40: 1512 | L40: 1480
A41: 130-204 | B41: Dita Babash | C41: 2025-10-20 | D41: 2026-11-30 | E41: -/1 | F41: 1380 | G41: 1380 | H41: 59 | I41: 25 | K41: 1464 | L41: 1380
A42: 130-205 | B42: Almaz Yussupov, Anel Tucker & Anna Bartel | C42: 2024-05-08 | D42: 2026-05-31 | E42: 2/2 | F42: 1780 | G42: 1780 | H42: 59 | I42: 25 | K42: 1864 | L42: 1780
A43: 130-301 | B43: Katie Boyd | C43: 2025-04-11 | D43: 2026-04-30 | E43: 1/1 | F43: 1545 | G43: 1545 | I43: 32 | J43: 50 | K43: 1627 | L43: 1545
A44: 130-302 | B44: Anastasia & Yevdokiya Beaty | C44: 2025-05-01 | D44: 2026-04-30 | E44: 1/1 | F44: 1545 | G44: 1545 | H44: 59 | I44: 25 | K44: 1629 | L44: 1545
A45: 130-303 | B45: Jenifer Krause | C45: 2025-03-15 | D45: 2027-03-31 | E45: 1/1 | F45: 1480 | G45: 1480 | H45: 59 | I45: 25 | K45: 1564 | L45: 1480
A46: 130-304 | B46: Tyler Croy | C46: 2026-03-06 | D46: 2026-08-31 | E46: S/1 | F46: 1380 | G46: 1380 | H46: 59 | I46: 32 | K46: 1471 | L46: 1380
A47: 130-305 | B47: Amber Scott & Emily Zangrilli | C47: 2024-07-15 | D47: 2026-09-30 | E47: 2/2 | F47: 1875 | G47: 1875 | H47: 59 | I47: 25 | K47: 1959 | L47: 1780
A48: TOTALS | F48: =SUM(F3:F47) -> 69450 | G48: =SUM(G3:G47) -> 67905 | H48: 1908 | I48: 1177 | J48: 1075 | K48: =SUM(K3:K47) -> 72065 | L48: 72955
F49: =F48*12 -> 833400
A50: Rent Roll Summary
A51: Total Units | B51: 45
A52: Occupied Units | B52: 44
A53: Occupancy % | B53: =B52/B51 -> 0.9777777778
A54: Avg Base Rent (Occupied) | B54: =AVERAGE(G3:G47) -> 1543.295455
A55: Monthly Base Rent | B55: =G48 -> 67905
A56: Monthly Internet | B56: =H48 -> 1908
A57: Monthly Pet Fees | B57: =J48 -> 1075
A58: Monthly Water | B58: =I48 -> 1177
A59: Avg Total Rent + RUBs (Occ) | B59: =AVERAGE(K10:K47) -> 1594.789474
A60: Total Monthly Rent + RUBs | B60: =K48 -> 72065
A63: Occupancy | B63: 0.04 | C63: 0.08 | D63: 0.12 | E63: 0.16 | F63: 5/25 | G63: 6/25 | H63: 7/25 | I63: 8/25 | J63: 9/25 | K63: 10/25 | L63: 11/25 | M63: 12/25 | N63: 1/26 | O63: 2/26 | P63: 3/26 | Q63: T-12 Average | R63: T-6 Average | S63: T-3 Average
A64: Total Units | B64: 45 | C64: 45 | D64: 45 | E64: 45 | F64: 45 | G64: 45 | H64: 45 | I64: 45 | J64: 45 | K64: 45 | L64: 45 | M64: 45 | N64: 45 | O64: 45 | P64: 45 | Q64: =AVERAGE(E64:P64) -> 45 | R64: =AVERAGE(K64:P64) -> 45 | S64: =AVERAGE(N64:P64) -> 45
A65: Occupied Units | B65: =B67+B68+B69 -> 37 | C65: 35 | D65: 33 | E65: 37 | F65: 40 | G65: 44 | H65: 45 | I65: 45 | J65: 44 | K65: =K67+K68+K69 -> 45 | L65: 44 | M65: 43 | N65: =SUM(N67:N69) -> 42 | O65: =SUM(O67:O69) -> 45 | P65: 45 | Q65: 43.25 | R65: 44 | S65: 44
A66: Percent | B66: =B65/B64 -> 0.8222222222 | C66: 0.7777777778 | D66: 0.7333333333 | E66: 0.8222222222 | F66: 0.8888888889 | G66: 0.9777777778 | H66: 1 | I66: 1 | J66: 0.9777777778 | K66: 1 | L66: 0.9777777778 | M66: 0.9555555556 | N66: 0.9333333333 | O66: =O65/O64 -> 1 | P66: 1 | Q66: 0.9611111111 | R66: 0.9777777778 | S66: 0.9777777778
A67: 2 Bedrooms | B67: 9 | C67: 9 | D67: 9 | E67: 9 | F67: 9 | G67: 9 | H67: 9 | I67: 9 | J67: 9 | K67: 9 | L67: 9 | M67: 9 | N67: 9 | O67: 9 | P67: 9 | Q67: 9 | R67: 9 | S67: 9
A68: 1 Bedroom | B68: 20 | C68: 17 | D68: 15 | E68: 19 | F68: 22 | G68: 26 | H68: 27 | I68: 27 | J68: 26 | K68: 27 | L68: 27 | M68: 26 | N68: 25 | O68: 27 | P68: 27 | Q68: 25.5 | R68: 26.5 | S68: 26.33333333
A69: Studio | B69: 8 | C69: 9 | D69: 9 | E69: 9 | F69: 9 | G69: 9 | H69: 9 | I69: 9 | J69: 9 | K69: 9 | L69: 8 | M69: 8 | N69: 8 | O69: 9 | P69: 9 | Q69: 8.75 | R69: 8.5 | S69: 8.666666667

Sheet worksheet (hidden)
G2: apr | H2: may | I2: jun | J2: jul | K2: aug | L2: sep | M2: oct | N2: nov | O2: dec | P2: jan | Q2: feb | R2: mar
B3: Water Diff | G3: =#REF!-#REF! ->  | H3: =#REF!-#REF! ->  | I3: =#REF!-#REF! ->  | J3: =#REF!-#REF! ->  | K3: =#REF!-#REF! ->  | L3: =#REF!-#REF! ->  | M3: =#REF!-#REF! ->  | N3: =#REF!-#REF! ->  | O3: =#REF!-#REF! ->  | P3: =#REF!-#REF! ->  | Q3: =#REF!-#REF! ->  | R3: =#REF!-#REF! -> 
B4: Internet Diff | G4: =#REF!-#REF! ->  | H4: =#REF!-#REF! ->  | I4: =#REF!-#REF! ->  | J4: =#REF!-#REF! ->  | K4: =#REF!-#REF! ->  | L4: =#REF!-#REF! ->  | M4: =#REF!-#REF! ->  | N4: =#REF!-#REF! ->  | O4: =#REF!-#REF! ->  | P4: =#REF!-#REF! ->  | Q4: =#REF!-#REF! ->  | R4: =#REF!-#REF! -> 
A9: Internet | G9: Apr | H9: May | I9: June | J9: July | K9: Aug | L9: Sep | M9: Oct | N9: Nov | O9: Dec | P9: Jan | Q9: Feb | R9: Mar
A10: Cost | G10: =#REF! ->  | H10: =#REF! ->  | I10: =#REF! ->  | J10: =#REF! ->  | K10: =#REF! ->  | L10: =#REF! ->  | M10: =#REF! ->  | N10: =#REF! ->  | O10: =#REF! ->  | P10: =#REF! ->  | Q10: =#REF! ->  | R10: =#REF! -> 
A11: Cost less 500mbps | G11: =(G10-50) -> 
A12: # 100 mpbs users | G12: =G11/30 ->  | L12: 30 | M12: 31 | N12: 32 | O12: 32 | P12: 32 | Q12: 32 | R12: =R11/30 -> 
A13: # 500 mbps users | G13: 1 | H13: 1 | I13: 1 | J13: 1 | K13: 1 | L13: 1 | M13: 1 | N13: 1 | O13: 1 | P13: 1 | Q13: 1 | R13: 1
A14: Income for 100mbps | G14: =G12*59 ->  | L14: 1770 | M14: 1829 | N14: 1888 | O14: 1888 | P14: 1888 | Q14: 1888
A15: Income for 500 mbps | G15: 79 | H15: 79 | I15: 79 | J15: 79 | K15: 79 | L15: 79 | M15: 79 | N15: 79 | O15: 79 | P15: 79 | Q15: 79 | R15: 79
B16: Total | G16: =G14+G15 ->  | L16: 1849 | M16: 1908 | N16: 1967 | O16: 1967 | P16: 1967 | Q16: 1967
A19: Misc
A20: App | D20: 15.5 | E20: 46.5 | F20: 155 | G20: 124 | H20: 46.5 | I20: 79 | J20: 17 | K20: 32.5 | L20: 46.5 | M20: 15.5 | N20: 15.5 | O20: 0 | P20: 0 | Q20: 93.5 | R20: 74.5
A21: Late | C21: 365.8 | D21: 150 | E21: 375 | F21: 225 | G21: 225 | H21: 575 | I21: 600 | J21: 300 | K21: 660 | L21: 596.12 | M21: 488.88 | N21: 722.63 | O21: 642.37 | P21: 700 | Q21: 670.56 | R21: 709.44
A22: Early Term | D22: 0 | E22: 0 | F22: 0 | G22: 0 | H22: 0 | I22: 0 | J22: 0 | K22: 0 | L22: 0 | M22: 0 | N22: 0 | O22: 0 | P22: 500 | Q22: 1545 | R22: 0
A23: Cleaning | C23: 0 | D23: 900 | E23: 297.38 | F23: 0 | G23: 75 | H23: 0 | I23: 500 | J23: 1300 | K23: 600 | L23: 616.29 | M23: 900 | N23: 0 | O23: 300 | P23: 0 | Q23: 0 | R23: 500
A24: Total | C24: =SUM(C20:C23) -> 365.8 | D24: 1065.5 | E24: 718.88 | F24: 380 | G24: 424 | H24: 621.5 | I24: 1179 | J24: 1617 | K24: 1292.5 | L24: 1258.91 | M24: 1404.38 | N24: 738.13 | O24: 942.37 | P24: 1200 | Q24: 2309.06 | R24: 1283.94
T29: 12 month
S30: total | T30: =SUM(G24:R24) -> 14270.79
C31: marketing | D31: annual fire | E31: supplies | F31: lon exp | S31: average | T31: =T30/12 -> 1189.2325
B32: april
B33: may
A34: lump pmt | B34: june | C34: 1136.96 | E34: 2201.99
B35: july
B36: aug
B37: sept
B38: oct | D38: 2130
B39: nov | D39: 900 | F39: 1938.08
B40: dec | F40: 56.18
B41: jan | D41: 750 | F41: 162.5
B42: feb | F42: 269.88
B43: march
B44: Total | C44: =SUM(C32:C43) -> 1136.96 | D44: 3780 | E44: 2201.99 | F44: 2426.64
A45: Normalized to Monthly | C45: =C44/12 -> 94.74666667 | D45: 315 | E45: 183.4991667 | F45: 202.22
E46: =E45+F45 -> 385.7191667

Sheet Mar 26 (hidden)
A1: Beginning Balance | B1: 0 | J1: Rent
J2: Pet
A3: Income | D3: Total Inc | E3: =SUM(B4:B8) -> 82483 | J3: Late Fee
A4: Man Dep | B4: 3919 | C4: from 3/3 dep
A5: Man Dep | B5: 180.66 | J5: Water
A6: Doorloop | B6: 78383.34 | J6: Electric
A7: Deposit Reconciliation | J7: Internet
J8: Total
A10: Expenses | D10: Total Exp | E10: =SUM(B11:B29) -> -53151.79 | R10: Deposits | S10: FHS | T10: Man
A11: Admin | R11: 902.5 | V11: 53488.27
A12: Debt | S12: 1350 | V12: 51048.19
A13: Loan PMT | B13: -35301.79 | R13: 1350
L14: water | M14: 379.16 | S14: 1350
A15: Utilities | M15: 316.55 | R15: 5510
A16: Internet | B16: -1010 | M16: 301.97 | T16: 1740.09
A17: Electricity | B17: -4630 | C17: 21st | M17: =SUM(M14:M16) -> 997.68 | S17: 1350
A18: Waste Management | B18: -681 | S18: 119.23
A19: Water | B19: -1456.5 | C19: 25th
A21: Prop Management
A22: Lon Salary Feb | B22: -6250 | L22: 20,000 transferred to MWest on 10/17 for escrow deposit on Biggers Lane
A23: Lon Exp | L23: To be paid back
A25: MISC
A26: Insurance | B26: -3821.5 | C26: this expense hit in April (for ytd insurance) do not count in april
A27: deposit return
A28: inspections
A29: Checkbook 1o/DL charge | B29: -1
A31: Carry Over | B31: =SUM(B1:B29) -> 29331.21
A33: Expenses less Loan PMT | B33: =E10-(B13) -> -17850 | D33: Profit | E33: =E3+E10 -> 29331.21
A34: Expenses Ratio | B34: =ABS(B33)/E3 -> 0.2164082296
A36: Disbursment
A37: Investor
A38: Jeff | F38: =B31-B26 -> 33152.71 | G38: matches checking
A39: Josh | F39: (without the insurance expense)
A40: Total
A42: To be Reconciled Carryover | B42: =B31+B40 -> 29331.21
G43: deposit from 3/3
G44: 6524.62
G45: 2605.62 | H45: applied to Feb as man dep
G46: =G44-G45 -> 3919 | H46: to hit in march as man dep
B51: 75922.69
B52: =B51+G45 -> 78528.31
E53: =B42-B52 -> -49197.1

Sheet Feb 26 (hidden)
A1: Beginning Balance | B1: 0 | J1: Rent
J2: Pet
A3: Income | D3: Total Inc | E3: =SUM(B4:B8) -> 79912.14 | J3: Late Fee
A4: Man Dep | B4: 2605.62 | C4: from 3/3 dep
A5: Man Dep | B5: 2499.67 | J5: Water
A6: Doorloop | B6: 74806.85 | J6: Electric
A7: Deposit Reconciliation | J7: Internet
J8: Total
A10: Expenses | D10: Total Exp | E10: =SUM(B11:B29) -> -50308.6 | R10: Deposits | S10: FHS | T10: Man
A11: Admin | R11: 902.5 | V11: 53488.27
A12: Debt | S12: 1350 | V12: 51048.19
A13: Loan PMT | B13: -35301.79 | R13: 1350
L14: water | M14: 379.16 | S14: 1350
A15: Utilities | M15: 316.55 | R15: 5510
A16: Internet | B16: -1040 | M16: 301.97 | T16: 1740.09
A17: Electricity | B17: -5095 | C17: 21st | M17: =SUM(M14:M16) -> 997.68 | S17: 1350
A18: Waste Management | B18: -681 | S18: 119.23
A19: Water | B19: -1667.93 | C19: 25th
A21: Prop Management
A22: Lon Salary Feb | B22: -6250 | L22: 20,000 transferred to MWest on 10/17 for escrow deposit on Biggers Lane
A23: Lon Exp | B23: -269.88 | L23: To be paid back
A25: MISC
A26: Insurance
A27: deposit return
A28: inspections
A29: Checkbook 1o/DL charge | B29: -3
A31: Carry Over | B31: =SUM(B1:B29) -> 29603.54
A33: Expenses less Loan PMT | B33: =E10-(B13) -> -15006.81 | D33: Profit | E33: =E3+E10 -> 29603.54
A34: Expenses Ratio | B34: =ABS(B33)/E3 -> 0.1877913669
A36: Disbursment
A37: Investor
A38: Jeff
A39: Josh
A40: Total
A42: To be Reconciled Carryover | B42: =B31+B40 -> 29603.54
G43: deposit from 3/3
G44: 6524.62
G45: 2605.62 | H45: applied to Feb as man dep
G46: =G44-G45 -> 3919 | H46: to hit in march as man dep
B51: 75922.69
B52: =B51+G45 -> 78528.31
E53: =B42-B52 -> -48924.77

Sheet January 26 (hidden)
A1: Beginning Balance | B1: 0 | J1: Rent
J2: Pet
A3: Income | D3: Total Inc | E3: =SUM(B4:B8) -> 69972.95 | J3: Late Fee
A4: Man Dep | B4: 1707.67
A5: FHS | J5: Water
A6: Doorloop | B6: 68265.28 | J6: Electric
A7: Deposit Reconciliation | J7: Internet
J8: Total
A10: Expenses | D10: Total Exp | E10: =SUM(B11:B30) -> -51048.19 | R10: Deposits | S10: FHS | T10: Man
A11: Admin | R11: 902.5 | V11: 53488.27
A12: Debt | S12: 1350 | V12: 51048.19
A13: Loan PMT | B13: -35301.79 | R13: 1350
L14: water | M14: 379.16 | S14: 1350
A15: Utilities | M15: 316.55 | R15: 5510
A16: Internet | B16: -1010 | M16: 301.97 | T16: 1740.09
A17: Electricity | B17: -4486 | C17: 21st | M17: =SUM(M14:M16) -> 997.68 | S17: 1350
A18: Waste Management | B18: -628.85 | S18: 119.23
A19: Water | B19: -1710.11 | C19: 25th
A21: Prop Management
A22: Lon Salary Feb | B22: -5241.94 | C22: Late PMT-hit in may | L22: 20,000 transferred to MWest on 10/17 for escrow deposit on Biggers Lane
A23: Lon Exp | B23: -1662.5 | C23: approved expenses + 1500 bonus | L23: To be paid back
A25: MISC
A26: Insurance
A27: Doorloop charge (investigating) | B27: -25
A28: deposit return
A29: inspections | B29: -980
A30: Checkbook 1o/DL charge | B30: -2
A32: Carry Over | B32: =SUM(B1:B30) -> 18924.76
A34: Expenses less Loan PMT | B34: =E10-(B13) -> -15746.4 | D34: Profit | E34: =E3+E10 -> 18924.76
A35: Expenses Ratio | B35: =ABS(B34)/E3 -> 0.2250355316
A37: Disbursment
A38: Investor | B38: -35492.82
A39: Jeff | B39: -7542.22
A40: Josh | B40: -1330.98
A41: Total | B41: =SUM(B38:B40) -> -44366.02
A43: To be Reconciled Carryover | B43: =B32+B41 -> -25441.26

Sheet December 25 (hidden)
A1: Beginning Balance | B1: 0 | J1: Rent
J2: Pet
A3: Income | D3: Total Inc | E3: =SUM(B4:B8) -> 78230.69 | J3: Late Fee
A4: Man Dep | B4: 1687.21
A5: FHS | J5: Water | W5: =E3+B27+B28 -> 75790.61
A6: Doorloop | B6: 76543.48 | J6: Electric
A7: Deposit Reconciliation | J7: Internet
J8: Total
A10: Expenses | D10: Total Exp | E10: =SUM(B11:B30) -> -79162.23 | R10: Deposits | S10: FHS | T10: Man
A11: Admin | R11: 902.5
A12: Debt | S12: 1350
A13: Loan PMT | B13: -35301.79 | R13: 1350
L14: water | M14: 379.16 | S14: 1350
A15: Utilities | M15: 316.55 | R15: 5510
A16: Internet | B16: -1010 | M16: 301.97 | T16: 1740.09
A17: Electricity | B17: -3653 | C17: 21st | M17: =SUM(M14:M16) -> 997.68 | S17: 1350
A18: Waste Management | B18: -599.45 | S18: 119.23
A19: Water | B19: -1502.34 | C19: 25th
A21: Prop Management
A22: Lon Salary Feb | B22: -5833.33 | C22: Late PMT-hit in may | L22: 20,000 transferred to MWest on 10/17 for escrow deposit on Biggers Lane
A23: Lon Exp | B23: -56.18 | C23: approved expenses | L23: To be paid back
A25: MISC
A26: Insurance
A27: Doorloop charge (investigating) | B27: -1293.14 | C27: returned check for double payment-swings with income
A28: deposit return | B28: -1146.94 | C28: accidental lon refund--should not have occurred. Lon getting back, expect to swing.
A29: Property Taxes (6 months) | B29: -28764.06
A30: Checkbook 1o/DL charge | B30: -2
A32: Carry Over | B32: =SUM(B1:B30) -> -931.54
A34: Expenses less Loan PMT | B34: =E10-(B13) -> -43860.44 | D34: Profit | E34: =E3+E10 -> -931.54
A35: Expenses Ratio | B35: =ABS(B34)/E3 -> 0.5606551598
A38: To be Reconciled Carryover | B38: =B32 -> -931.54
B41: as of 12.18

Sheet November (hidden)
A1: Beginning Balance | B1: 0
J2: Income
A3: Income | D3: Total Inc | E3: =SUM(B4:B8) -> 68710.77 | J3: Rent
A4: Man Dep | B4: 1931.31 | J4: Pet
A5: FHS | B5: 340.58 | J5: Late Fee
A6: Doorloop | B6: 66438.88
A7: Deposit Reconciliation | J7: Water
J8: Electric
J9: Internet
A10: Expenses | D10: Total Exp | E10: =SUM(B11:B30) -> -48237.64 | J10: Total
A11: Admin
A12: Debt | R12: Deposits | S12: FHS | T12: Man
A13: Loan PMT | B13: -35301.79 | R13: 902.5
S14: 1350
A15: Utilities | R15: 1350
A16: Internet | B16: -1010 | L16: water | M16: 446.99 | S16: 1350
A17: Electricity | B17: -2495 | C17: 21st | M17: 405.83 | R17: 5510
A18: Waste Management | B18: -790.88 | M18: 525.45 | T18: 1740.09
A19: Water | B19: -1723.8 | C19: 25th | S19: 1350
S20: 119.23
A21: Prop Management
A22: Lon Salary Feb | B22: -4076.09 | C22: unpaid time off--reviewed with Lon
A23: Lon Exp | B23: -1938.08 | C23: approved expenses
L24: 20,000 transferred to MWest on 10/17 for escrow deposit on Biggers Lane
A25: MISC | L25: To be paid back
A26: Insurance
A27: Fire inspection | B27: -900
A28: deposit return
A29: WestEntry Cleaning | B29: 0
A30: Checkbook 1o/DL charge | B30: -2
A32: Carry Over | B32: =SUM(B1:B30) -> 20473.13
A34: Expenses less Loan PMT | B34: =E10-(B13) -> -12935.85 | D34: Profit | E34: =E3+E10 -> 20473.13
A35: Expenses Ratio | B35: =ABS(B34)/E3 -> 0.1882652458
A37: Add in
A40: To be Reconciled Carryover | B40: =B32+B38 -> 20473.13

Sheet October (hidden)
A1: Beginning Balance | B1: 0
J2: Income
A3: Income | D3: Total Inc | E3: =SUM(B4:B8) -> 74667.46 | J3: Rent
A4: Man Dep | B4: 4868.17 | J4: Pet
A5: FHS | J5: Late Fee
A6: Doorloop | B6: 69799.29
A7: Deposit Reconciliation
J8: Water
J9: Electric
A10: Expenses | D10: Total Exp | E10: =SUM(B11:B31) -> -49843.03 | J10: Internet
A11: Admin | J11: Total
A12: Debt
A13: Loan PMT | B13: -35301.79 | R13: Deposits | S13: FHS | T13: Man
R14: 902.5
A15: Utilities | S15: 1350
A16: Internet | B16: -980 | R16: 1350
A17: Electricity | B17: -2085 | C17: 21st | L17: water | M17: 446.99 | S17: 1350
A18: Waste Management | B18: -628.85 | M18: 405.83 | R18: 5510
A19: Water | B19: -1409.48 | C19: 25th | M19: 525.45 | T19: 1740.09
S20: 1350
A21: Prop Management | S21: 119.23
A22: Lon Salary Feb | B22: -4727.27 | C22: Kenneth covered 9/11-13 and 9/27-30 (7 days)
A23: Lon Exp | C23: approved expenses
A25: MISC
A26: Insurance | L26: 20,000 transferred to MWest on 10/17 for escrow deposit on Biggers Lane
A27: Fire inspection | B27: -2205
A28: deposit return | L28: To be paid back
A29: WestEntry Cleaning | B29: -2500
A30: Banking charge | B30: -2.64
A31: Checkbook 1o/DL charge | B31: -3
A33: Carry Over | B33: =SUM(B1:B31) -> 24824.43
A35: Expenses less Loan PMT | B35: =E10-(B13) -> -14541.24 | D35: Profit | E35: =E3+E10 -> 24824.43
A36: Expenses Ratio | B36: =ABS(B35)/E3 -> 0.1947466808
A38: Add in
A39: Investor Distribution | B39: -72847.87
A40: MWest Distribution | B40: -15480.17
B41: -2731.8
A42: To be Reconciled Carryover | B42: =B33+B39+B40+B41 -> -66235.41

Sheet September (hidden)
A1: Beginning Balance | B1: 0 | H1: last audit | W1: 9.11.25
J2: Income
A3: Income | D3: Total Inc | E3: =SUM(B4:B7) -> 82034.37 | J3: Rent
A4: Man Dep | B4: 5436.26 | J4: Pet | N4: Inc/Unit
A5: FHS | B5: 4142.88 | J5: Late Fee | N5: =K10/41 -> 0
A6: Doorloop | B6: 72455.23 | AD6: 1383.38
J7: Water | N7: Exp/Unit | AD7: 1370.07
J8: Electric | N8: =(35*41)+1600 -> 3035 | AD8: 1389.43
J9: Internet | N9: =N8/41 -> 74.02439024 | AD9: =SUM(AD6:AD8) -> 4142.88
A10: Expenses | D10: Total Exp | E10: =SUM(B11:B30) -> -52072.01 | J10: Total
A11: Admin | N11: =N5-N9 -> -74.02439024
A12: Debt | R12: Deposits | S12: FHS | T12: Man
A13: Loan PMT | B13: -35301.79 | R13: 902.5
S14: 1350
A15: Utilities | L15: Escrow | M15: 28000 | R15: 1350 | AA15: West Entry cleaning of $2975 was reimbursed by FHS on 10/6
A16: Internet | B16: -1324 | L16: Landscaping | M16: 25950 | S16: 1350 | AA16: Still have June-Aug outstanding.
A17: Electricity | B17: -2227 | C17: 21st | L17: Income | M17: =M15-M16 -> 2050 | R17: 5510
A18: Waste Management | B18: -628.85 | T18: 1740.09
A19: Water | B19: -1346.15 | C19: 25th | S19: 1350
S20: 119.23
A21: Prop Management
A22: Lon Salary Feb | B22: -6250 | C22: checkbook io
A23: Lon Exp
O24: 126.64
A25: MISC
A26: Insurance | B26: -3458.22 | C26: Reconciled 9.11 with Mwest for July-Sept insurance
A27: deposit return | B27: -1134 | C27: Zoe Jacobson
A28: WestEntry Cleaning
A29: Camera Repair | B29: -400
A30: Checkbook 1o/DL charge | B30: -2
A32: Carry Over | B32: =SUM(B1:B30) -> 29962.36 | H32: 105671.32 | J32: =B32-H32 -> -75708.96
A34: Expenses less Loan PMT | B34: =E10-(B13) -> -16770.22 | D34: Profit | E34: =E3+E10 -> 29962.36
A35: Expenses Ratio | B35: =ABS(B34)/E3 -> 0.2044291923
G39: Real Balance on 9/30 is | W39: 118084.85
G40: Difference of | W40: =B32-W39 -> -88122.49
G42: This is a was from the charge on 9/3 with the deposit from FHS on 10/6. Do not count 10/6s deposit as October income. (STR cleaning paid by FHS)

Sheet August (hidden)
A1: Beginning Balance | B1: 0
A3: Income | D3: Total Inc | E3: =SUM(B4:B8) -> 77286.17
A4: Man Dep | B4: 3242.73
A5: FHS | B5: 4138.7
A6: Doorloop | B6: 69904.74
A7: Vacasa Income
A10: Expenses | D10: Total Exp | E10: =SUM(B11:B29) -> -50599.84
A11: Admin
A12: Debt
A13: Loan PMT | B13: -35301.79
A15: Utilities
A16: Internet | B16: -920
A17: Electricity | B17: -2105 | C17: 21st
A18: Waste Management | B18: -628.85
A19: Water | B19: -1393.2 | C19: 25th
A21: Prop Management
A22: Lon Salary Feb | B22: -6250 | C22: checkbook io
A23: Lon Exp
A25: MISC
A26: Insurance
A27: deposit return | B27: -1499 | C27: Norris
A28: WestEntry Cleaning | B28: -2500 | C28: to be reconciled in Sept-FHS
A29: Checkbook 1o/DL charge | B29: -2
A31: Carry Over | B31: =SUM(B1:B29) -> 26686.33
A33: Expenses less Loan PMT | B33: =E10-(B13) -> -15298.05 | D33: Profit | E33: =E3+E10 -> 26686.33
A34: Expenses Ratio | B34: =ABS(B33)/E3 -> 0.1979403301
A36: Reconciliation Dep Acct | B36: -5973.21
A38: True Carryover | B38: =B31+B36 -> 20713.12

Sheet July (hidden)
A1: Beginning Balance | B1: =June!#REF! -> 
A3: Income | D3: Total Inc | E3: =SUM(B4:B8) -> 79980.36
A4: Man Dep | B4: 5016.99
A5: FHS | B5: 4067.99 | C5: PMT made 8.4
A6: Doorloop | B6: 70895.38
A7: Deposit Reconciliation
A10: Expenses | D10: Total Exp | E10: =SUM(B11:B29) -> -50326.74
A11: Admin
A12: Debt
A13: Loan PMT | B13: -35301.79
A15: Utilities
A16: Internet | B16: -950
A17: Electricity | B17: -1991
A18: Waste Management | B18: -628.85
A19: Water | B19: -1400.53
A21: Prop Management
A22: Lon Salary Feb | B22: -6250
A23: Lon Exp
A25: MISC
A26: Property Tax | B26: -1433.25
A27: deposit return | B27: -368.32
A28: WestEntry Cleaning | B28: -2000
A29: Checkbook 1o/DL charge | B29: -3
A32: Expenses less Loan PMT | B32: =E10-(B13) -> -15024.95 | D32: Profit | E32: =E3+E10 -> 29653.62
A33: Expenses Ratio | B33: =ABS(B32)/E3 -> 0.1878579941

Sheet June (hidden)
A1: Beginning Balance | B1: =May!B31 -> 40497.26
A3: Income | D3: Total Inc | E3: =SUM(B4:B8) -> 69292.27
A4: Man Dep | B4: 3868.87
A5: FHS | B5: 4040.95
A6: Doorloop | B6: 61382.45
A7: Mwest Reconciliation
A10: Expenses | D10: Total Exp | E10: =SUM(B11:B29) -> -49449.38
A11: Admin
A12: Debt
A13: Loan PMT | B13: -35301.79
A15: Utilities
A16: Internet | B16: -980
A17: Electricity | B17: -1869
A18: Waste Management | B18: -628.85
A19: Water | B19: -1130.34
A21: Prop Management
A22: Lon Salary Feb | B22: -5600
A23: Lon Exp
A25: MISC
A26: Marketing (last 6 months) | B26: -1136.96
A27: deposit return | B27: -2273.84
A28: WestEntry Cleaning | B28: -524.25
A29: Checkbook 1o/DL charge | B29: -4.35
A31: Carry Over | B31: =SUM(B1:B29) -> 60340.15
A33: Expenses less Loan PMT | B33: =E10-(B13) -> -14147.59 | D33: Profit | E33: =E3+E10 -> 19842.89
A34: Expenses Ratio | B34: =ABS(B33)/E3 -> 0.2041727021

Sheet May (hidden)
A1: Beginning Balance | B1: =Apr!B29 -> 16543.26
A3: Income | D3: Total Inc | E3: =SUM(B4:B7) -> 72102.84
A4: Man Dep | B4: 5337.21
A5: FHS | B5: 4092.01
A6: Doorloop | B6: 62673.62
A7: Deposit Reconciliation
A8: Reserve Balance PMT
A10: Expenses | D10: Total Exp | E10: =SUM(B11:B29) -> -48148.84
A11: Admin
A12: Debt
A13: Loan PMT | B13: -35301.79
A15: Utilities
A16: Internet | B16: -950 | J16: April | K16: May
A17: Electricity | B17: -2727 | J17: 1359.64 | K17: 1356.72
A18: Waste Management | B18: -628.85 | J18: 1372.71 | K18: 1364.39
A19: Water | B19: -972.1 | J19: 1379.66 | K19: 1370.9
J20: =SUM(J17:J19) -> 4112.01 | K20: 4092.01
A21: Prop Management
A22: Lon Salary Feb | B22: -6250
A23: Lon Exp
A25: MISC
A26: Insurance
A27: deposit return | B27: -1318.1
A28: WestEntry Cleaning | B28: 0
A29: Checkbook 1o/DL charge | B29: -1
A31: Carry Over | B31: =SUM(B1:B29) -> 40497.26
A33: Expenses less Loan PMT | B33: =E10-(B13) -> -12847.05 | D33: Profit | E33: =E3+E10 -> 23954 | K33: =L33 -> 0
A34: Expenses Ratio | B34: =ABS(B33)/E3 -> 0.1781767542

Sheet Apr (hidden)
A1: Income | D1: Total Inc | E1: =SUM(B2:B6) -> 64789.91
A2: Man Dep | B2: 4784.63
A3: FHS | B3: 4112.01
A4: Doorloop | B4: 55893.27
A5: Deposit Reconciliation
A8: Expenses | D8: Total Exp | E8: =SUM(B9:B27) -> -48246.65
A9: Admin
A10: Debt
A11: Loan PMT | B11: -35301.79
A13: Utilities
A14: Internet | B14: -890 | J14: April | K14: May
A15: Electricity | B15: -2829 | J15: 1359.64 | K15: 1356.72
A16: Waste Management | B16: -628.85 | J16: 1372.71 | K16: 1364.39
A17: Water | B17: -939.01 | J17: 1379.66 | K17: 1370.9
J18: =SUM(J15:J17) -> 4112.01 | K18: 4092.01
A19: Prop Management
A20: Lon Salary Feb | B20: -6250
A21: Lon Exp
A23: MISC
A24: Insurance
A25: deposit return | B25: -1405
A26: WestEntry Cleaning | B26: 0
A27: Checkbook 1o/DL charge | B27: -3
A29: Carry Over | B29: =SUM(B1:B27) -> 16543.26
A31: Expenses less Loan PMT | B31: =E8-(B11) -> -12944.86 | D31: Profit | E31: =E1+E8 -> 16543.26
A32: Expenses Ratio | B32: =ABS(B31)/E1 -> 0.1997974685

Sheet March (hidden)
A1: Income | D1: Total Inc | E1: =SUM(B2:B6) -> 70203.58 | J1: Rent
A2: Man Dep | B2: 3961.34 | J2: Pet
A3: FHS | B3: 4179.54 | J3: Late Fee
A4: Doorloop | B4: 62062.7
A5: Deposit Reconciliation
J6: Water
J7: Electric
A8: Expenses | D8: Total Exp | E8: =SUM(B9:B28) -> -55965.85 | J8: Internet
A9: Admin | J9: Total
A10: Debt
A11: Loan PMT | B11: -35301.79 | R11: Deposits | S11: FHS | T11: Man
R12: 902.5
A13: Utilities | S13: 1350
A14: Internet | B14: -770 | R14: 1350
A15: Electricity | B15: -3832 | C15: 21st | L15: water | M15: 379.16 | S15: 1350
A16: Waste Management | B16: -628.85 | M16: 316.55 | R16: 5510
A17: Water | B17: -948.88 | C17: 25th | M17: 301.97 | T17: 1740.09
M18: =SUM(M15:M17) -> 997.68 | S18: 1350
A19: Prop Management | S19: 119.23 | Y19: 296.95
A20: Lon Salary Feb | B20: -6250 | Y20: 309.13
A21: Lon Exp | Y21: 342.8
A23: MISC
A24: Insurance | B24: -5009.33
A25: Reconciliation with MWest
A26: Snow Plow & Clearing | B26: -3135
A27: WestEntry Cleaning | B27: -90
A28: Checkbook 1o/DL charge
A30: Carry Over | B30: =SUM(B1:B28) -> 14237.73
A32: Expenses less Loan PMT | B32: =E8-(B11) -> -20664.06 | D32: Profit | E32: =E1+E8 -> 14237.73
A33: Expenses Ratio | B33: =ABS(B32)/E1 -> 0.2943448183 | L33: 20,000 transferred to MWest on 10/17 for escrow deposit on Biggers Lane

Sheet Feb (hidden)
A1: Income | D1: Total Inc | E1: =SUM(B2:B5) -> 58105.35 | J1: Rent
A2: Man Dep | B2: 3913.18 | J2: Pet
A3: FHS | B3: 4180.81 | J3: Late Fee
A4: Doorloop | B4: 50011.36
J5: Water
J6: Electric
A7: Expenses | D7: Total Exp | E7: =SUM(B8:B26) -> -48938.67 | J7: Internet
A8: Admin | J8: Total
A9: Debt
A10: Loan PMT | B10: -35301.79 | R10: Deposits | S10: FHS | T10: Man
R11: 902.5
A12: Utilities | S12: 1350
A13: Internet | B13: -830 | R13: 1350
A14: Electricity | B14: -4457 | C14: 21st | L14: water | M14: 379.16 | S14: 1350
A15: Waste Management | B15: -628.85 | M15: 316.55 | R15: 5510
A16: Water | B16: -1094.03 | C16: 25th | M16: 301.97 | T16: 1740.09
M17: =SUM(M14:M16) -> 997.68 | S17: 1350
A18: Prop Management | S18: 119.23
A19: Lon Salary (Sept) | B19: -6250
A21: MISC
A22: Returned Deposits
A23: Reconciliation with MWest
A24: Snow Plow | B24: -375
A25: WestEntry Cleaning
A26: Checkbook 1o/DL charge | B26: -2
A29: Expenses less Loan PMT | B29: =E7-(B10) -> -13636.88 | D29: Profit | E29: =E1+E7 -> 9166.68
A30: Expenses Ratio | B30: =ABS(B29)/E1 -> 0.2346923304 | L30: 20,000 transferred to MWest on 10/17 for escrow deposit on Biggers Lane

Sheet Jan (hidden)
A1: Beginning Balance | B1: 167355.21
J2: Income
A3: Income | D3: Total Inc | E3: =SUM(B4:B7) -> 67032.19 | J3: Rent
A4: Man Dep | B4: 3800.1 | J4: Pet
A5: FHS | B5: 4157.79 | J5: Late Fee
A6: Doorloop | B6: 59074.3
J7: Water
J8: Electric
A9: Expenses | D9: Total Exp | E9: =SUM(B10:B28) -> -49077.86 | J9: Internet
A10: Admin | J10: Total
A11: Debt
A12: Loan PMT | B12: -35301.79 | R12: Deposits | S12: FHS | T12: Man
R13: 902.5
A14: Utilities | S14: 1350
A15: Internet | B15: -860 | R15: 1350
A16: Electricity | B16: -3845 | L16: water | M16: 379.16 | S16: 1350 | Y16: =SUM(B12:B28)+SUM(#REF!) -> 
A17: Waste Management | B17: -580.95 | M17: 316.55 | R17: 5510
A18: Water | B18: -2187.59 | M18: 301.97 | T18: 1740.09
M19: =SUM(M16:M18) -> 997.68 | S19: 1350
A20: Prop Management | S20: 119.23
A21: Lon Salary (Sept) | B21: -4687.5
A22: Lon Exp | B22: -155.03
A24: MISC
A25: Elite Fire Protection Inspection | B25: -900
A26: Snow Plow | B26: -375
A27: WestEntry Cleaning | B27: -180
A28: Checkbook 1o/DL charge | B28: -5
U30: -34440.13
A31: Expenses less Loan PMT | B31: =E9-(B12) -> -13776.07 | D31: Profit | E31: =E3+E9 -> 17954.33 | U31: =ABS(U30/#REF!) -> 
A32: Expenses Ratio | B32: =ABS(B31)/E3 -> 0.2055142462 | L32: 20,000 transferred to MWest on 10/17 for escrow deposit on Biggers Lane

Sheet December (hidden)
A1: Income | D1: Total Inc | E1: =SUM(B2:B5) -> 64484.89 | J1: Rent
A2: Man Dep | B2: 3893.61 | J2: Pet
A3: FHS | B3: 4162.93 | J3: Late Fee
A4: Doorloop | B4: 56428.35
J5: Water
J6: Electric
A7: Expenses | D7: Total Exp | E7: =SUM(B8:B28) -> -46199.89 | J7: Internet
A8: Admin | J8: Total
A9: Debt
A10: Loan PMT | B10: -35301.79 | R10: Deposits | S10: FHS | T10: Man
R11: 902.5
A12: Utilities | S12: 1350
A13: Internet | B13: -890 | R13: 1350
A14: Electricity | B14: -3330 | C14: 21st | L14: water | M14: 379.16 | S14: 1350
A15: Waste Management | B15: -580.95 | M15: 316.55 | R15: 5510
A16: Water | B16: 0 | C16: 25th | M16: 301.97 | T16: 1740.09
M17: =SUM(M14:M16) -> 997.68 | S17: 1350
A18: Prop Management | S18: 119.23
A19: Lon Salary (Sept) | B19: -5600
A20: Lon Exp | B20: -345.15
A22: Cap Imp | L22: 20,000 transferred to MWest on 10/17 for escrow deposit on Biggers Lane
L23: To be paid back
A24: MISC
A25: Deposit Return | B25: 0
A26: Snow Plow | B26: -125
A27: WestEntry Cleaning | B27: 0
A28: Checkbook 1o/DL charge | B28: -27
D30: Profit | E30: =E1+E7 -> 18285
A33: Expenses less Loan PMT | B33: =E7-(B10+B25) -> -10898.1
A34: Expenses Ratio | B34: =ABS(B33)/E1 -> 0.1690023818
